[Event "December 12 Late 2023"]
[Site "https://www.chess.com"]
[Date "2023.12.12"]
[Round "11"]
[White "De Souza, Cristiano Gomes"]
[Black "Rose, Felix"]
[Result "0-1"]
[Board "77"]
[TimeControl "180+1"]
[WhiteFideId "2151758"]
[BlackFideId "5105722"]
[WhiteElo "2242"]
[BlackElo "2317"]
[WhiteTeam "BRA"]
[BlackTeam "MEX"]
[WhiteClock "0:00:07"]
[BlackClock "0:00:07"]

1. d4 {[%clk 0:02:56]}  d6 {[%clk 0:02:56]} 2. c4 {[%clk 0:02:55]}  Nf6 {[%clk 0:02:56]} 3. Nc3 {[%clk 0:02:53]}  e5 {[%clk 0:02:55]} 4. dxe5 {[%clk 0:02:53]}  dxe5 {[%clk 0:02:56]} 5. Qxd8+ {[%clk 0:02:53]}  Kxd8 {[%clk 0:02:57]} 6. Bg5 {[%clk 0:02:53]}  c6 {[%clk 0:02:51]} 7. e3 {[%clk 0:02:53]}  Nd7 {[%clk 0:02:48]} 8. Nf3 {[%clk 0:02:52]}  Kc7 {[%clk 0:02:47]} 9. Rc1 {[%clk 0:02:51]}  a5 {[%clk 0:02:47]} 10. Be2 {[%clk 0:02:50]}  h6 {[%clk 0:02:37]} 11. Bh4 {[%clk 0:02:49]}  Ne8 {[%clk 0:02:32]} 12. O-O {[%clk 0:02:47]}  f6 {[%clk 0:02:31]} 13. Bg3 {[%clk 0:02:47]}  Nd6 {[%clk 0:02:15]} 14. Nh4 {[%clk 0:02:33]}  g5 {[%clk 0:02:03]} 15. Ng6 {[%clk 0:02:29]}  Rg8 {[%clk 0:02:03]} 16. Nxf8 {[%clk 0:02:29]}  Nxf8 {[%clk 0:02:00]} 17. f3 {[%clk 0:02:14]}  Be6 {[%clk 0:01:59]} 18. b3 {[%clk 0:02:13]}  Nd7 {[%clk 0:01:55]} 19. Rfd1 {[%clk 0:02:10]}  Rgd8 {[%clk 0:01:53]} 20. Rd2 {[%clk 0:02:07]}  Nf5 {[%clk 0:01:51]} 21. Bf2 {[%clk 0:02:05]}  Nc5 {[%clk 0:01:39]} 22. Rcd1 {[%clk 0:02:04]}  Rxd2 {[%clk 0:01:38]} 23. Rxd2 {[%clk 0:02:04]}  Ne7 {[%clk 0:01:34]} 24. e4 {[%clk 0:02:01]}  Nd7 {[%clk 0:01:33]} 25. Na4 {[%clk 0:01:58]}  Nc8 {[%clk 0:01:31]} 26. Nc5 {[%clk 0:01:56]}  Nxc5 {[%clk 0:01:30]} 27. Bxc5 {[%clk 0:01:57]}  b6 {[%clk 0:01:30]} 28. Ba3 {[%clk 0:01:54]}  c5 {[%clk 0:01:29]} 29. Bc1 {[%clk 0:01:51]}  Ne7 {[%clk 0:01:29]} 30. Kf2 {[%clk 0:01:46]}  Nc6 {[%clk 0:01:30]} 31. Bb2 {[%clk 0:01:45]}  a4 {[%clk 0:01:25]} 32. Bd1 {[%clk 0:01:33]}  axb3 {[%clk 0:01:24]} 33. axb3 {[%clk 0:01:32]}  Ra2 {[%clk 0:01:23]} 34. Bc3 {[%clk 0:01:31]}  Rxd2+ {[%clk 0:01:19]} 35. Bxd2 {[%clk 0:01:30]}  Nd4 {[%clk 0:01:17]} 36. Ke3 {[%clk 0:01:28]}  Kc6 {[%clk 0:01:16]} 37. Bc3 {[%clk 0:01:27]}  b5 {[%clk 0:01:15]} 38. Bxd4 {[%clk 0:01:25]}  cxd4+ {[%clk 0:01:11]} 39. Kd3 {[%clk 0:01:26]}  bxc4+ {[%clk 0:01:10]} 40. bxc4 {[%clk 0:01:26]}  Kc5 {[%clk 0:01:10]} 41. Bb3 {[%clk 0:01:21]}  Kb4 {[%clk 0:01:05]} 42. Ba2 {[%clk 0:01:18]}  Ka3 {[%clk 0:01:00]} 43. Bb1 {[%clk 0:01:13]}  Kb2 {[%clk 0:00:59]} 44. Bc2 {[%clk 0:01:04]}  Bxc4+ {[%clk 0:00:59]} 45. Kd2 {[%clk 0:01:04]}  h5 {[%clk 0:00:53]} 46. g3 {[%clk 0:01:03]}  Bf1 {[%clk 0:00:48]} 47. Ba4 {[%clk 0:00:59]}  Bg2 {[%clk 0:00:45]} 48. Ke2 {[%clk 0:00:56]}  Kc3 {[%clk 0:00:44]} 49. Bb5 {[%clk 0:00:55]}  d3+ {[%clk 0:00:39]} 50. Bxd3 {[%clk 0:00:52]}  Bxf3+ {[%clk 0:00:39]} 51. Ke3 {[%clk 0:00:52]}  Bg4 {[%clk 0:00:33]} 52. Bf1 {[%clk 0:00:47]}  Kc2 {[%clk 0:00:31]} 53. h3 {[%clk 0:00:46]}  Be6 {[%clk 0:00:23]} 54. Be2 {[%clk 0:00:43]}  h4 {[%clk 0:00:17]} 55. g4 {[%clk 0:00:39]}  Kc1 {[%clk 0:00:14]} 56. Bf3 {[%clk 0:00:37]}  Bb3 {[%clk 0:00:13]} 57. Be2 {[%clk 0:00:36]}  Bd1 {[%clk 0:00:13]} 58. Bf1 {[%clk 0:00:25]}  Kc2 {[%clk 0:00:10]} 59. Bd3+ {[%clk 0:00:24]}  Kc3 {[%clk 0:00:09]} 60. Bf1 {[%clk 0:00:22]}  Bb3 {[%clk 0:00:09]} 61. Be2 {[%clk 0:00:20]}  Bc4 {[%clk 0:00:10]} 62. Bd1 {[%clk 0:00:19]}  Bf1 {[%clk 0:00:10]} 63. Bf3 {[%clk 0:00:15]}  Bxh3 {[%clk 0:00:10]} 64. Kf2 {[%clk 0:00:16]}  Kd3 {[%clk 0:00:08]} 65. Kg1 {[%clk 0:00:15]}  Ke3 {[%clk 0:00:08]} 66. Bd1 {[%clk 0:00:13]}  Kf4 {[%clk 0:00:07]} 67. Kf2 {[%clk 0:00:12]}  Bxg4 {[%clk 0:00:07]} 68. Bc2 {[%clk 0:00:12]}  Bf3 {[%clk 0:00:07]} 69. Bb3 {[%clk 0:00:10]}  Bxe4 {[%clk 0:00:07]} 70. Be6 {[%clk 0:00:07]}  g4 {[%clk 0:00:07]} 0-1

[Event "December 12 Late 2023"]
[Site "https://www.chess.com"]
[Date "2023.12.12"]
[Round "11"]
[White "Manfroi, Alexander Giannini"]
[Black "Kornyukov, Alexey"]
[Result "0-1"]
[Board "78"]
[TimeControl "180+1"]
[WhiteFideId "22739335"]
[BlackFideId "4150457"]
[WhiteElo "2198"]
[BlackElo "2297"]
[WhiteTeam "BRA"]
[BlackTeam "RUS"]
[WhiteClock "0:00:19"]
[BlackClock "0:01:03"]

1. d4 {[%clk 0:03:00]}  d5 {[%clk 0:02:56]} 2. Bf4 {[%clk 0:03:01]}  c5 {[%clk 0:02:42]} 3. e3 {[%clk 0:02:58]}  Nc6 {[%clk 0:02:41]} 4. Nc3 {[%clk 0:02:58]}  cxd4 {[%clk 0:02:35]} 5. exd4 {[%clk 0:02:53]}  a6 {[%clk 0:02:34]} 6. Nf3 {[%clk 0:02:52]}  Nf6 {[%clk 0:02:33]} 7. Ne5 {[%clk 0:02:46]}  Bf5 {[%clk 0:02:22]} 8. Be2 {[%clk 0:02:33]}  e6 {[%clk 0:02:19]} 9. O-O {[%clk 0:02:32]}  Bd6 {[%clk 0:02:15]} 10. Bg3 {[%clk 0:01:43]}  O-O {[%clk 0:02:09]} 11. Re1 {[%clk 0:01:33]}  Rc8 {[%clk 0:01:56]} 12. Rc1 {[%clk 0:01:31]}  h6 {[%clk 0:01:49]} 13. h3 {[%clk 0:01:24]}  Qc7 {[%clk 0:01:46]} 14. f4 {[%clk 0:01:20]}  Nxd4 {[%clk 0:01:39]} 15. Bf2 {[%clk 0:01:08]}  Nxe2+ {[%clk 0:01:31]} 16. Qxe2 {[%clk 0:00:57]}  Ne4 {[%clk 0:01:27]} 17. Nxe4 {[%clk 0:00:53]}  Bxe4 {[%clk 0:01:27]} 18. Bd4 {[%clk 0:00:50]}  f6 {[%clk 0:01:23]} 19. Ng4 {[%clk 0:00:42]}  Bxf4 {[%clk 0:01:20]} 20. g3 {[%clk 0:00:27]}  Bxc1 {[%clk 0:01:18]} 21. Rxc1 {[%clk 0:00:22]}  Qxg3+ {[%clk 0:01:18]} 22. Kf1 {[%clk 0:00:20]}  Qxh3+ {[%clk 0:01:15]} 23. Kg1 {[%clk 0:00:20]}  e5 {[%clk 0:01:05]} 24. Bf2 {[%clk 0:00:20]}  Bf3 {[%clk 0:01:03]} 25. Qf1 {[%clk 0:00:19]}  Qh1# {[%clk 0:01:03]} 0-1

[Event "December 12 Late 2023"]
[Site "https://www.chess.com"]
[Date "2023.12.12"]
[Round "11"]
[White "Osmonbekov, Talaibek"]
[Black "Burke, Paul"]
[Result "1-0"]
[Board "79"]
[TimeControl "180+1"]
[WhiteFideId "2017253"]
[BlackFideId "2605767"]
[WhiteElo "2277"]
[BlackElo "1871"]
[WhiteTeam "USA"]
[BlackTeam "CAN"]
[WhiteClock "0:00:03"]
[BlackClock "0:00:27"]

1. d4 {[%clk 0:03:00]}  a6 {[%clk 0:02:53]} 2. Nc3 {[%clk 0:03:00]}  d6 {[%clk 0:02:53]} 3. e4 {[%clk 0:03:00]}  g6 {[%clk 0:02:53]} 4. h4 {[%clk 0:03:00]}  h6 {[%clk 0:02:53]} 5. Bc4 {[%clk 0:02:56]}  e6 {[%clk 0:02:52]} 6. Be3 {[%clk 0:02:43]}  Bg7 {[%clk 0:02:49]} 7. Qd2 {[%clk 0:02:41]}  Ne7 {[%clk 0:02:48]} 8. h5 {[%clk 0:02:35]}  g5 {[%clk 0:02:47]} 9. f4 {[%clk 0:02:35]}  g4 {[%clk 0:02:37]} 10. Nge2 {[%clk 0:02:29]}  d5 {[%clk 0:02:30]} 11. Bd3 {[%clk 0:02:21]}  f5 {[%clk 0:02:26]} 12. exd5 {[%clk 0:01:48]}  Nxd5 {[%clk 0:02:22]} 13. O-O-O {[%clk 0:01:39]}  O-O {[%clk 0:02:19]} 14. Rhe1 {[%clk 0:01:30]}  c6 {[%clk 0:02:04]} 15. Kb1 {[%clk 0:01:25]}  Nd7 {[%clk 0:02:01]} 16. Nxd5 {[%clk 0:01:05]}  cxd5 {[%clk 0:01:59]} 17. c4 {[%clk 0:01:05]}  Nf6 {[%clk 0:01:55]} 18. Nc3 {[%clk 0:01:03]}  Ne4 {[%clk 0:01:34]} 19. Bxe4 {[%clk 0:00:57]}  dxe4 {[%clk 0:01:34]} 20. d5 {[%clk 0:00:57]}  Qf6 {[%clk 0:01:17]} 21. Na4 {[%clk 0:00:44]}  b5 {[%clk 0:01:05]} 22. Nb6 {[%clk 0:00:42]}  Rb8 {[%clk 0:01:04]} 23. d6 {[%clk 0:00:16]}  Bb7 {[%clk 0:00:56]} 24. Nd7 {[%clk 0:00:14]}  Qf7 {[%clk 0:00:51]} 25. Nxb8 {[%clk 0:00:11]}  Rxb8 {[%clk 0:00:51]} 26. d7 {[%clk 0:00:10]}  Rd8 {[%clk 0:00:50]} 27. Bb6 {[%clk 0:00:10]}  Bf6 {[%clk 0:00:43]} 28. Bxd8 {[%clk 0:00:09]}  Bxd8 {[%clk 0:00:43]} 29. c5 {[%clk 0:00:09]}  Bd5 {[%clk 0:00:40]} 30. c6 {[%clk 0:00:06]}  Bxc6 {[%clk 0:00:39]} 31. Qd6 {[%clk 0:00:05]}  Bd5 {[%clk 0:00:37]} 32. Rc1 {[%clk 0:00:03]}  e5 {[%clk 0:00:36]} 33. Rc8 {[%clk 0:00:03]}  Bxa2+ {[%clk 0:00:27]} 34. Ka1 {[%clk 0:00:03]} 1-0

[Event "December 12 Late 2023"]
[Site "https://www.chess.com"]
[Date "2023.12.12"]
[Round "11"]
[White "BestestBP"]
[Black "Golubenko, Valentina"]
[Result "0-1"]
[Board "81"]
[TimeControl "180+1"]
[BlackFideId "4501993"]
[WhiteElo "2159"]
[BlackElo "2257"]
[BlackTeam "CRO"]
[WhiteClock "0:00:00"]
[BlackClock "0:00:14"]

1. d4 {[%clk 0:02:55]}  g6 {[%clk 0:02:58]} 2. Nf3 {[%clk 0:02:55]}  Bg7 {[%clk 0:02:57]} 3. c4 {[%clk 0:02:55]}  c5 {[%clk 0:02:57]} 4. g3 {[%clk 0:02:51]}  cxd4 {[%clk 0:02:57]} 5. Nxd4 {[%clk 0:02:50]}  Nc6 {[%clk 0:02:57]} 6. Nxc6 {[%clk 0:02:49]}  bxc6 {[%clk 0:02:58]} 7. Bg2 {[%clk 0:02:49]}  Nf6 {[%clk 0:02:58]} 8. O-O {[%clk 0:02:49]}  d5 {[%clk 0:02:58]} 9. Nc3 {[%clk 0:02:46]}  e6 {[%clk 0:02:58]} 10. cxd5 {[%clk 0:02:39]}  cxd5 {[%clk 0:02:56]} 11. Bg5 {[%clk 0:02:38]}  O-O {[%clk 0:02:56]} 12. Rc1 {[%clk 0:02:33]}  Bd7 {[%clk 0:02:50]} 13. e4 {[%clk 0:02:30]}  h6 {[%clk 0:02:02]} 14. Bxf6 {[%clk 0:02:28]}  Bxf6 {[%clk 0:02:01]} 15. exd5 {[%clk 0:02:28]}  exd5 {[%clk 0:02:01]} 16. Qxd5 {[%clk 0:01:59]}  Rc8 {[%clk 0:01:58]} 17. Ne4 {[%clk 0:01:39]}  Bxb2 {[%clk 0:01:46]} 18. Rcd1 {[%clk 0:01:25]}  Ba4 {[%clk 0:01:31]} 19. Qxd8 {[%clk 0:01:06]}  Rfxd8 {[%clk 0:01:30]} 20. Rb1 {[%clk 0:01:03]}  Rc2 {[%clk 0:01:16]} 21. Rfd1 {[%clk 0:00:36]}  Re8 {[%clk 0:00:56]} 22. Rd6 {[%clk 0:00:12]}  Kg7 {[%clk 0:00:51]} 23. Ra6 {[%clk 0:00:11]}  Bc6 {[%clk 0:00:45]} 24. Nd6 {[%clk 0:00:06]}  Rd8 {[%clk 0:00:24]} 25. Rxc6 {[%clk 0:00:04]}  Rxc6 {[%clk 0:00:23]} 26. Bxc6 {[%clk 0:00:04]}  Rxd6 {[%clk 0:00:23]} 27. Rxb2 {[%clk 0:00:04]}  Rxc6 {[%clk 0:00:24]} 28. Kg2 {[%clk 0:00:04]}  Ra6 {[%clk 0:00:23]} 29. h4 {[%clk 0:00:03]}  Kf6 {[%clk 0:00:24]} 30. Kf3 {[%clk 0:00:03]}  Ke6 {[%clk 0:00:24]} 31. Kg4 {[%clk 0:00:03]}  f5+ {[%clk 0:00:23]} 32. Kh3 {[%clk 0:00:03]}  Ra3 {[%clk 0:00:23]} 33. Kg2 {[%clk 0:00:03]}  Ke5 {[%clk 0:00:23]} 34. Re2+ {[%clk 0:00:03]}  Kf6 {[%clk 0:00:23]} 35. Rb2 {[%clk 0:00:03]}  g5 {[%clk 0:00:23]} 36. hxg5+ {[%clk 0:00:03]}  hxg5 {[%clk 0:00:23]} 37. Rc2 {[%clk 0:00:03]}  g4 {[%clk 0:00:22]} 38. Rb2 {[%clk 0:00:03]}  Kg5 {[%clk 0:00:22]} 39. Rc2 {[%clk 0:00:03]}  Kf6 {[%clk 0:00:22]} 40. Rb2 {[%clk 0:00:03]}  Ke5 {[%clk 0:00:22]} 41. Rb5+ {[%clk 0:00:03]}  Ke4 {[%clk 0:00:22]} 42. Rb4+ {[%clk 0:00:03]}  Kd3 {[%clk 0:00:20]} 43. Rf4 {[%clk 0:00:03]}  Rxa2 {[%clk 0:00:19]} 44. Rxf5 {[%clk 0:00:03]}  a5 {[%clk 0:00:20]} 45. Rf4 {[%clk 0:00:03]}  a4 {[%clk 0:00:20]} 46. Rxg4 {[%clk 0:00:03]}  a3 {[%clk 0:00:20]} 47. Rg8 {[%clk 0:00:03]}  Kc3 {[%clk 0:00:19]} 48. Rc8+ {[%clk 0:00:02]}  Kb2 {[%clk 0:00:18]} 49. Ra8 {[%clk 0:00:02]}  Kb3 {[%clk 0:00:17]} 50. g4 {[%clk 0:00:03]}  Rc2 {[%clk 0:00:16]} 51. g5 {[%clk 0:00:01]}  Rc6 {[%clk 0:00:15]} 52. f4 {[%clk 0:00:02]}  a2 {[%clk 0:00:15]} 53. Kg3 {[%clk 0:00:02]}  Kb2 {[%clk 0:00:15]} 54. Kg4 {[%clk 0:00:00]}  Rc3 {[%clk 0:00:14]} 0-1

[Event "December 12 Late 2023"]
[Site "https://www.chess.com"]
[Date "2023.12.12"]
[Round "11"]
[White "De Lima, Valdenicio Marcelino"]
[Black "Buenafe Moya, Javier"]
[Result "1-0"]
[Board "83"]
[TimeControl "180+1"]
[WhiteFideId "2132044"]
[BlackFideId "2206412"]
[WhiteElo "2233"]
[BlackElo "2344"]
[WhiteTeam "BRA"]
[BlackTeam "ESP"]
[WhiteClock "0:01:13"]
[BlackClock "0:01:04"]

1. Nf3 {[%clk 0:02:48]}  b5 {[%clk 0:02:58]} 2. d4 {[%clk 0:02:48]}  Bb7 {[%clk 0:02:57]} 3. e3 {[%clk 0:02:46]}  a6 {[%clk 0:02:55]} 4. c4 {[%clk 0:02:46]}  bxc4 {[%clk 0:02:54]} 5. Bxc4 {[%clk 0:02:47]}  Nf6 {[%clk 0:02:54]} 6. O-O {[%clk 0:02:47]}  e6 {[%clk 0:02:53]} 7. Nc3 {[%clk 0:02:46]}  Be7 {[%clk 0:02:47]} 8. b3 {[%clk 0:02:46]}  d6 {[%clk 0:02:40]} 9. Bb2 {[%clk 0:02:44]}  Nbd7 {[%clk 0:02:40]} 10. Rc1 {[%clk 0:02:43]}  Ne4 {[%clk 0:02:38]} 11. Qe2 {[%clk 0:02:41]}  Ndf6 {[%clk 0:02:37]} 12. Rfd1 {[%clk 0:02:36]}  O-O {[%clk 0:02:32]} 13. Nd2 {[%clk 0:02:32]}  Nxc3 {[%clk 0:02:28]} 14. Bxc3 {[%clk 0:02:26]}  Qe8 {[%clk 0:02:26]} 15. f3 {[%clk 0:02:24]}  d5 {[%clk 0:02:21]} 16. Bd3 {[%clk 0:02:23]}  Bd6 {[%clk 0:02:22]} 17. e4 {[%clk 0:02:20]}  dxe4 {[%clk 0:02:17]} 18. fxe4 {[%clk 0:02:19]}  e5 {[%clk 0:02:18]} 19. d5 {[%clk 0:02:18]}  Qd7 {[%clk 0:02:13]} 20. h3 {[%clk 0:02:13]}  h6 {[%clk 0:02:08]} 21. Ba1 {[%clk 0:02:11]}  g6 {[%clk 0:02:06]} 22. Qe3 {[%clk 0:02:07]}  Kg7 {[%clk 0:02:03]} 23. Nc4 {[%clk 0:02:06]}  Rae8 {[%clk 0:02:01]} 24. Be2 {[%clk 0:01:56]}  Qe7 {[%clk 0:01:38]} 25. Nxd6 {[%clk 0:01:52]}  Qxd6 {[%clk 0:01:33]} 26. Bf3 {[%clk 0:01:51]}  Nh7 {[%clk 0:01:32]} 27. h4 {[%clk 0:01:49]}  f5 {[%clk 0:01:30]} 28. Qc5 {[%clk 0:01:44]}  Nf6 {[%clk 0:01:25]} 29. Qxc7+ {[%clk 0:01:42]}  Qxc7 {[%clk 0:01:25]} 30. Rxc7+ {[%clk 0:01:43]}  Rf7 {[%clk 0:01:25]} 31. d6 {[%clk 0:01:37]}  Bxe4 {[%clk 0:01:23]} 32. Bxe4 {[%clk 0:01:32]}  Nxe4 {[%clk 0:01:23]} 33. d7 {[%clk 0:01:32]}  Rd8 {[%clk 0:01:21]} 34. Bxe5+ {[%clk 0:01:31]}  Kf8 {[%clk 0:01:20]} 35. Rc8 {[%clk 0:01:20]}  Ke7 {[%clk 0:01:07]} 36. Rxd8 {[%clk 0:01:15]}  Kxd8 {[%clk 0:01:07]} 37. Bc7+ {[%clk 0:01:12]}  Kxc7 {[%clk 0:01:04]} 38. d8=Q+ {[%clk 0:01:13]} 1-0

[Event "December 12 Late 2023"]
[Site "https://www.chess.com"]
[Date "2023.12.12"]
[Round "11"]
[White "Novikova, Margarita"]
[Black "Kostiukov, Alexandr"]
[Result "0-1"]
[Board "84"]
[TimeControl "180+1"]
[WhiteFideId "14109689"]
[BlackFideId "14108100"]
[WhiteElo "2123"]
[BlackElo "2334"]
[WhiteTeam "GER"]
[BlackTeam "UKR"]
[WhiteClock "0:00:02"]
[BlackClock "0:00:16"]

1. d4 {[%clk 0:02:58]}  g6 {[%clk 0:02:59]} 2. Bf4 {[%clk 0:02:58]}  Bg7 {[%clk 0:02:58]} 3. c3 {[%clk 0:02:59]}  d6 {[%clk 0:02:57]} 4. e4 {[%clk 0:02:59]}  e5 {[%clk 0:02:57]} 5. dxe5 {[%clk 0:02:59]}  dxe5 {[%clk 0:02:58]} 6. Qxd8+ {[%clk 0:02:59]}  Kxd8 {[%clk 0:02:59]} 7. Bg5+ {[%clk 0:02:58]}  f6 {[%clk 0:02:59]} 8. Be3 {[%clk 0:02:58]}  Be6 {[%clk 0:03:00]} 9. Nd2 {[%clk 0:02:58]}  Nd7 {[%clk 0:03:00]} 10. Bc4 {[%clk 0:02:58]}  Ke7 {[%clk 0:02:55]} 11. O-O-O {[%clk 0:02:57]}  Bh6 {[%clk 0:02:55]} 12. Bxe6 {[%clk 0:02:50]}  Kxe6 {[%clk 0:02:52]} 13. Nc4 {[%clk 0:02:48]}  Nc5 {[%clk 0:02:33]} 14. Kc2 {[%clk 0:02:44]}  Bxe3 {[%clk 0:02:30]} 15. Nxe3 {[%clk 0:02:33]}  Nxe4 {[%clk 0:02:30]} 16. Nh3 {[%clk 0:02:33]}  Ne7 {[%clk 0:02:24]} 17. f3 {[%clk 0:02:32]}  Nd6 {[%clk 0:02:22]} 18. Nf2 {[%clk 0:02:29]}  Rad8 {[%clk 0:02:17]} 19. Nd3 {[%clk 0:02:26]}  b6 {[%clk 0:02:15]} 20. Nb4 {[%clk 0:02:24]}  a5 {[%clk 0:02:10]} 21. Nbd5 {[%clk 0:02:21]}  Nxd5 {[%clk 0:02:10]} 22. Rxd5 {[%clk 0:02:20]}  Nc4 {[%clk 0:01:52]} 23. Rxd8 {[%clk 0:02:14]}  Nxe3+ {[%clk 0:01:50]} 24. Kd3 {[%clk 0:02:14]}  Rxd8+ {[%clk 0:01:50]} 25. Kxe3 {[%clk 0:02:15]}  f5 {[%clk 0:01:49]} 26. h4 {[%clk 0:02:10]}  h5 {[%clk 0:01:44]} 27. Re1 {[%clk 0:02:08]}  c5 {[%clk 0:01:43]} 28. a4 {[%clk 0:02:06]}  c4 {[%clk 0:01:43]} 29. Ke2 {[%clk 0:02:00]}  Rd6 {[%clk 0:01:21]} 30. Rg1 {[%clk 0:01:57]}  Rd5 {[%clk 0:01:22]} 31. g4 {[%clk 0:01:56]}  hxg4 {[%clk 0:01:17]} 32. fxg4 {[%clk 0:01:57]}  Kf6 {[%clk 0:00:56]} 33. gxf5 {[%clk 0:01:46]}  gxf5 {[%clk 0:00:55]} 34. Rg8 {[%clk 0:01:39]}  e4 {[%clk 0:00:47]} 35. h5 {[%clk 0:01:37]}  Rd3 {[%clk 0:00:38]} 36. Rg6+ {[%clk 0:01:23]}  Ke5 {[%clk 0:00:37]} 37. Rxb6 {[%clk 0:01:22]}  Rh3 {[%clk 0:00:37]} 38. h6 {[%clk 0:01:17]}  Kf4 {[%clk 0:00:36]} 39. Rc6 {[%clk 0:00:52]}  Rh2+ {[%clk 0:00:35]} 40. Kd1 {[%clk 0:00:50]}  Ke3 {[%clk 0:00:34]} 41. Rxc4 {[%clk 0:00:46]}  f4 {[%clk 0:00:34]} 42. Rc6 {[%clk 0:00:35]}  f3 {[%clk 0:00:33]} 43. b4 {[%clk 0:00:32]}  Rh1+ {[%clk 0:00:27]} 44. Kc2 {[%clk 0:00:32]}  f2 {[%clk 0:00:28]} 45. Rf6 {[%clk 0:00:30]}  Rxh6 {[%clk 0:00:23]} 46. Rf8 {[%clk 0:00:19]}  Rh1 {[%clk 0:00:18]} 47. b5 {[%clk 0:00:19]}  f1=Q {[%clk 0:00:16]} 48. Rxf1 {[%clk 0:00:18]}  Rxf1 {[%clk 0:00:17]} 49. c4 {[%clk 0:00:15]}  Kd4 {[%clk 0:00:16]} 50. b6 {[%clk 0:00:02]}  Rf7 {[%clk 0:00:16]} 0-1

[Event "December 12 Late 2023"]
[Site "https://www.chess.com"]
[Date "2023.12.12"]
[Round "11"]
[White "Kujawski, Adam"]
[Black "Travadon, Loic"]
[Result "0-1"]
[Board "85"]
[TimeControl "180+1"]
[WhiteFideId "1100920"]
[BlackFideId "26092131"]
[WhiteElo "2314"]
[BlackElo "2130"]
[WhiteTeam "POL"]
[BlackTeam "FRA"]
[WhiteClock "0:00:00"]
[BlackClock "0:00:48"]

1. e4 {[%clk 0:01:25]}  e5 {[%clk 0:02:56]} 2. Nf3 {[%clk 0:01:25]}  Nc6 {[%clk 0:02:55]} 3. Bb5 {[%clk 0:01:25]}  a6 {[%clk 0:02:53]} 4. Ba4 {[%clk 0:01:26]}  Nf6 {[%clk 0:02:53]} 5. O-O {[%clk 0:01:26]}  b5 {[%clk 0:02:53]} 6. Bb3 {[%clk 0:01:25]}  Nxe4 {[%clk 0:02:53]} 7. d4 {[%clk 0:01:25]}  d5 {[%clk 0:02:53]} 8. dxe5 {[%clk 0:01:25]}  Be6 {[%clk 0:02:52]} 9. Nbd2 {[%clk 0:01:25]}  Be7 {[%clk 0:02:51]} 10. Qe2 {[%clk 0:01:22]}  Nc5 {[%clk 0:02:43]} 11. c3 {[%clk 0:01:22]}  d4 {[%clk 0:02:37]} 12. Bxe6 {[%clk 0:00:44]}  Nxe6 {[%clk 0:02:33]} 13. Ne4 {[%clk 0:00:43]}  O-O {[%clk 0:02:30]} 14. Rd1 {[%clk 0:00:38]}  Qd5 {[%clk 0:02:24]} 15. cxd4 {[%clk 0:00:26]}  Ncxd4 {[%clk 0:02:04]} 16. Nxd4 {[%clk 0:00:26]}  Nxd4 {[%clk 0:02:03]} 17. Qd3 {[%clk 0:00:22]}  c5 {[%clk 0:02:03]} 18. f4 {[%clk 0:00:18]}  Rad8 {[%clk 0:02:02]} 19. Be3 {[%clk 0:00:18]}  Rd7 {[%clk 0:01:59]} 20. Bxd4 {[%clk 0:00:18]}  cxd4 {[%clk 0:01:58]} 21. a3 {[%clk 0:00:13]}  Rfd8 {[%clk 0:01:58]} 22. Rac1 {[%clk 0:00:13]}  b4 {[%clk 0:01:55]} 23. a4 {[%clk 0:00:12]}  b3 {[%clk 0:01:50]} 24. Rc4 {[%clk 0:00:08]}  a5 {[%clk 0:01:47]} 25. Rdc1 {[%clk 0:00:08]}  Bb4 {[%clk 0:01:45]} 26. g3 {[%clk 0:00:07]}  Kf8 {[%clk 0:01:42]} 27. Rc6 {[%clk 0:00:07]}  h6 {[%clk 0:01:27]} 28. R1c4 {[%clk 0:00:06]}  Ke8 {[%clk 0:01:20]} 29. h4 {[%clk 0:00:06]}  Bf8 {[%clk 0:01:19]} 30. Kh2 {[%clk 0:00:06]}  Rb8 {[%clk 0:01:13]} 31. Nd6+ {[%clk 0:00:05]}  Bxd6 {[%clk 0:01:12]} 32. Rxd6 {[%clk 0:00:05]}  Rxd6 {[%clk 0:01:11]} 33. exd6 {[%clk 0:00:05]}  Qxd6 {[%clk 0:01:06]} 34. Rxd4 {[%clk 0:00:05]}  Qc7 {[%clk 0:01:02]} 35. Rc4 {[%clk 0:00:02]}  Qb6 {[%clk 0:00:59]} 36. Qe4+ {[%clk 0:00:01]}  Kf8 {[%clk 0:00:57]} 37. Rc6 {[%clk 0:00:01]}  Qf2+ {[%clk 0:00:56]} 38. Kh3 {[%clk 0:00:01]}  Qxb2 {[%clk 0:00:50]} 39. Rc7 {[%clk 0:00:00]}  Qf6 {[%clk 0:00:48]} 0-1

[Event "December 12 Late 2023"]
[Site "https://www.chess.com"]
[Date "2023.12.12"]
[Round "11"]
[White "Su, Dion"]
[Black "Stead, Kerry"]
[Result "1-0"]
[Board "88"]
[TimeControl "180+1"]
[WhiteFideId "2029731"]
[BlackFideId "3202577"]
[WhiteElo "2343"]
[BlackElo "2064"]
[WhiteTeam "USA"]
[BlackTeam "AUS"]
[WhiteClock "0:01:12"]
[BlackClock "0:00:50"]

1. e4 {[%clk 0:03:00]}  c6 {[%clk 0:02:57]} 2. d4 {[%clk 0:03:00]}  d5 {[%clk 0:02:57]} 3. e5 {[%clk 0:03:00]}  Bf5 {[%clk 0:02:55]} 4. Nf3 {[%clk 0:03:00]}  e6 {[%clk 0:02:52]} 5. Be2 {[%clk 0:03:00]}  Nd7 {[%clk 0:02:51]} 6. O-O {[%clk 0:03:00]}  h6 {[%clk 0:02:50]} 7. c3 {[%clk 0:03:00]}  c5 {[%clk 0:02:51]} 8. Nbd2 {[%clk 0:02:59]}  Ne7 {[%clk 0:02:50]} 9. Nb3 {[%clk 0:02:58]}  c4 {[%clk 0:02:49]} 10. Nbd2 {[%clk 0:02:58]}  Nc6 {[%clk 0:02:48]} 11. Re1 {[%clk 0:02:58]}  Be7 {[%clk 0:02:48]} 12. Nf1 {[%clk 0:02:59]}  Qc7 {[%clk 0:02:46]} 13. Ng3 {[%clk 0:02:59]}  Bg6 {[%clk 0:02:45]} 14. Be3 {[%clk 0:02:58]}  O-O-O {[%clk 0:02:45]} 15. b3 {[%clk 0:02:56]}  cxb3 {[%clk 0:02:44]} 16. axb3 {[%clk 0:02:56]}  Kb8 {[%clk 0:02:44]} 17. b4 {[%clk 0:02:55]}  Rdf8 {[%clk 0:02:40]} 18. Qa4 {[%clk 0:02:53]}  Nb6 {[%clk 0:02:37]} 19. Qa2 {[%clk 0:02:52]}  Nc8 {[%clk 0:02:32]} 20. Rec1 {[%clk 0:02:45]}  f6 {[%clk 0:02:23]} 21. b5 {[%clk 0:02:43]}  Nd8 {[%clk 0:02:19]} 22. c4 {[%clk 0:02:41]}  Qd7 {[%clk 0:02:12]} 23. c5 {[%clk 0:02:36]}  b6 {[%clk 0:02:09]} 24. c6 {[%clk 0:02:27]}  Qc7 {[%clk 0:02:08]} 25. Bf4 {[%clk 0:02:16]}  f5 {[%clk 0:01:59]} 26. Bd2 {[%clk 0:02:12]}  Be8 {[%clk 0:01:56]} 27. Ne1 {[%clk 0:02:07]}  g5 {[%clk 0:01:56]} 28. Nf1 {[%clk 0:02:04]}  Bg6 {[%clk 0:01:55]} 29. Nd3 {[%clk 0:02:00]}  Nf7 {[%clk 0:01:52]} 30. Nb4 {[%clk 0:01:43]}  Bxb4 {[%clk 0:01:50]} 31. Bxb4 {[%clk 0:01:43]}  f4 {[%clk 0:01:40]} 32. Bxf8 {[%clk 0:01:40]}  Rxf8 {[%clk 0:01:37]} 33. Nd2 {[%clk 0:01:41]}  Bf5 {[%clk 0:01:29]} 34. Nb3 {[%clk 0:01:37]}  g4 {[%clk 0:01:27]} 35. Bd1 {[%clk 0:01:30]}  Ng5 {[%clk 0:01:27]} 36. Bc2 {[%clk 0:01:27]}  Ne4 {[%clk 0:01:25]} 37. Bxe4 {[%clk 0:01:26]}  Bxe4 {[%clk 0:01:24]} 38. Nc5 {[%clk 0:01:18]}  bxc5 {[%clk 0:01:22]} 39. dxc5 {[%clk 0:01:19]}  Qxe5 {[%clk 0:01:16]} 40. b6 {[%clk 0:01:19]}  g3 {[%clk 0:00:59]} 41. c7+ {[%clk 0:01:17]}  Kb7 {[%clk 0:00:52]} 42. c6+ {[%clk 0:01:12]}  Kxb6 {[%clk 0:00:50]} 43. Qa5# {[%clk 0:01:12]} 1-0